{"text_format":"1","workbook":"xlsx","n_sheets":6,"sheets":["Main","Manual Calculation","Formatted as Text","Circular Reference","Space Occur Before Equal Sign","Macro"],"not_rendered":{"charts":0,"images":0,"macros":1,"external_links":0,"defined_names":0,"comments":0,"pivot_tables":0},"unopened":[],"bounds":{"document_bytes":16777216,"sheet_cells":100000,"rows_first":2000,"rows_last":500,"rows_between":2000,"halvings":0,"cell_chars":16384,"cell_head_chars":4096},"cells_cut":0,"cells_raw":0,"read":"whole","date_system":"1900"}

{"sheet":"Main","index":0,"n_rows":12,"n_cols":4,"rows_kept":12,"cut":false,"hidden":false,"merged":[[1,1,1,3]]}
[]
[null,"Excel Formula is Not Updating Automatically"]
[]
[null,"Name ","Income ","Tax to be paid "]
[null,"Liam ",8000,{"$f":"C5*$D$12","v":800}]
[null,"Oliver ",7500,{"$f":"C6*$D$12","v":750}]
[null,"Elijah ",7200,720]
[null,"James ",8300,830]
[null,"Benjamin ",6500,650]
[null,"William ",4500,450]
[]
[null,null,"Tax on Income ",0.1]

{"sheet":"Manual Calculation","index":1,"n_rows":12,"n_cols":4,"rows_kept":12,"cut":false,"hidden":false,"merged":[[1,1,1,3]]}
[]
[null,"Excel Formula is Not Updating Automatically"]
[]
[null,"Name ","Income ","Tax to be paid "]
[null,"Liam ",8000,{"$f":"C5*$D$12","v":1200}]
[null,"Oliver ",7500,{"$f":"C6*$D$12","v":1125}]
[null,"Elijah ",7200,1080]
[null,"James ",8300,1245]
[null,"Benjamin ",6500,975]
[null,"William ",4500,675]
[]
[null,null,"Tax on Income ",0.15]

{"sheet":"Formatted as Text","index":2,"n_rows":12,"n_cols":4,"rows_kept":12,"cut":false,"hidden":false,"merged":[[1,1,1,3]]}
[]
[null,"Excel Formula is Not Updating Automatically"]
[]
[null,"Name ","Income ","Tax to be paid "]
[null,"Liam ",8000,{"$f":"C5*$D$12","v":800}]
[null,"Oliver ",7500,{"$f":"C6*$D$12","v":750}]
[null,"Elijah ",7200,720]
[null,"James ",8300,830]
[null,"Benjamin ",6500,650]
[null,"William ",4500,450]
[]
[null,null,"Tax on Income ",0.1]

{"sheet":"Circular Reference","index":3,"n_rows":12,"n_cols":4,"rows_kept":12,"cut":false,"hidden":false,"merged":[[1,1,1,3]]}
[]
[null,"Excel Formula is Not Updating Automatically"]
[]
[null,"Name ","Income ","Tax to be paid "]
[null,"Liam ",8000,{"$f":"C5*D12","v":800}]
[null,"Oliver ",7500,{"$f":"C6*$D$12","v":750}]
[null,"Elijah ",7200,720]
[null,"James ",8300,830]
[null,"Benjamin ",6500,650]
[null,"William ",4500,450]
[]
[null,null,"Tax on Income ",0.1]

{"sheet":"Space Occur Before Equal Sign","index":4,"n_rows":12,"n_cols":4,"rows_kept":12,"cut":false,"hidden":false,"merged":[[1,1,1,3]]}
[]
[null,"Excel Formula is Not Updating Automatically"]
[]
[null,"Name ","Income ","Tax to be paid "]
[null,"Liam ",8000,{"$f":"C5*$D$12","v":1200}]
[null,"Oliver ",7500,1125]
[null,"Elijah ",7200,1080]
[null,"James ",8300,1245]
[null,"Benjamin ",6500,975]
[null,"William ",4500,675]
[]
[null,null,"Tax on Income ",0.15]

{"sheet":"Macro","index":5,"n_rows":12,"n_cols":4,"rows_kept":12,"cut":false,"hidden":false,"merged":[[1,1,1,3]]}
[]
[null,"Excel Formula is Not Updating Automatically"]
[]
[null,"Name ","Income ","Tax to be paid "]
[null,"Liam ",8000,{"$f":"C5*$D$12","v":1200}]
[null,"Oliver ",7500,{"$f":"C6*$D$12","v":1125}]
[null,"Elijah ",7200,1080]
[null,"James ",8300,1245]
[null,"Benjamin ",6500,975]
[null,"William ",4500,675]
[]
[null,null,"Tax on Income ",0.15]